fUST/lending_fUST_20251206
["ID","MTS","AMOUNT","RATE_DAILY","PERIOD"]
[396517968,1765028274326,-281.11128348,9.257e-05,2]
[396517969,1765028274418,-230.4097016,9.257e-05,2]
[396517970,1765028274484,-511.52098508,9.257e-05,2]
[396517971,1765028274550,-511.52098508,9.257e-05,2]
[396517972,1765028274617,-511.52098508,9.257e-05,2]
[396517973,1765028274682,-511.52098508,9.257e-05,2]
[396517974,1765028274747,-511.52098508,9.257e-05,2]
[396517975,1765028275035,-511.52098508,9.257e-05,2]
[396517976,1765028275096,-511.52098508,9.257e-05,2]
[396517977,1765028275144,-511.52098508,9.257e-05,2]
[396517978,1765028275199,-511.52098508,9.257e-05,2]
[396517979,1765028275371,-511.52098508,9.257e-05,2]
[396517980,1765028275419,-511.52098508,9.257e-05,2]
[396517981,1765028275464,-511.52098508,9.257e-05,2]
[396517982,1765028275509,-511.52098508,9.257e-05,2]
[396517983,1765028275556,-511.52098508,9.257e-05,2]
[396517984,1765028275598,-511.52098508,9.257e-05,2]
[396517985,1765028275644,-511.52098508,9.257e-05,2]
[396517986,1765028275688,-511.52098508,9.257e-05,2]
[396517987,1765028275733,-511.52098508,9.257e-05,2]
[396517988,1765028275779,-281.11128348,9.257e-05,2]
[396517989,1765028275959,-230.4097016,9.257e-05,2]
[396517990,1765028276009,-511.52098508,9.257e-05,2]
[396517991,1765028276072,-511.52098508,9.257e-05,2]
[396517992,1765028276120,-511.52098508,9.257e-05,2]
[396517993,1765028276167,-511.52098508,9.257e-05,2]
[396517994,1765028276214,-511.52098508,9.257e-05,2]
[396517995,1765028276260,-511.52098508,9.257e-05,2]
[396517996,1765028276307,-511.52098508,9.257e-05,2]
[396517997,1765028276354,-511.52098508,9.257e-05,2]
[396517998,1765028276399,-511.52098508,9.257e-05,2]
[396517999,1765028276566,-511.52098508,9.257e-05,2]
[396518000,1765028276609,-511.52098508,9.257e-05,2]
[396518001,1765028276653,-511.52098508,9.257e-05,2]
[396518002,1765028276699,-511.52098508,9.257e-05,2]
[396518003,1765028276743,-511.52098508,9.257e-05,2]
[396518004,1765028276787,-511.52098508,9.257e-05,2]
[396518005,1765028276831,-511.52098508,9.257e-05,2]
[396518006,1765028276876,-511.52098508,9.257e-05,2]
[396518007,1765028276919,-500.98967069,9.257e-05,2]
[396518008,1765028276960,-312.70522665,9.257e-05,2]
[396518009,1765028277096,-188.28444404,9.257e-05,2]
[396518010,1765028277141,-500.98967069,9.257e-05,2]
[396518011,1765028277185,-500.98967069,9.257e-05,2]
[396518012,1765028277235,-500.98967069,9.257e-05,2]
[396518013,1765028277279,-500.98967069,9.257e-05,2]
[396518014,1765028277325,-500.98967069,9.257e-05,2]
[396518015,1765028277505,-500.98967069,9.257e-05,2]
[396518016,1765028277552,-500.98967069,9.257e-05,2]
[396518017,1765028277598,-500.98967069,9.257e-05,2]
[396518018,1765028277644,-500.98967069,9.257e-05,2]
[396518019,1765028277689,-104.63736881,9.257e-05,2]
[396518020,1765028280049,-300.0,9.257e-05,2]
[396518021,1765028281869,-96.35230188,9.257e-05,2]
[396518022,1765028281922,-500.98967069,9.257e-05,2]
[396518023,1765028281971,-500.98967069,9.257e-05,2]
[396518024,1765028282027,-500.98967069,9.257e-05,2]
[396518025,1765028282084,-500.98967069,9.257e-05,2]
[396518026,1765028282133,-500.98967069,9.257e-05,2]
[396518027,1765028282185,-500.98967069,9.257e-05,2]
[396518028,1765028282235,-500.98967069,9.257e-05,2]
[396518029,1765028282284,-500.98967069,9.257e-05,2]
[396518030,1765028282336,-500.98967069,9.257e-05,2]
[396518031,1765028282386,-288.50165313,9.257e-05,2]
[396518032,1765028282574,-212.48801756,9.257e-05,2]
[396518033,1765028282623,-500.98967069,9.257e-05,2]
[396518034,1765028282672,-500.98967069,9.257e-05,2]
[396518035,1765028282729,-500.98967069,9.257e-05,2]
[396518036,1765028282778,-500.98967069,9.257e-05,2]
[396518037,1765028282825,-500.98967069,9.257e-05,2]
[396518038,1765028282881,-500.98967069,9.257e-05,2]
[396518039,1765028282929,-500.98967069,9.257e-05,2]
[396518040,1765028282975,-500.98967069,9.257e-05,2]
[396518041,1765028283021,-500.98967069,9.257e-05,2]
[396518042,1765028283068,-56.23022177,9.257e-05,2]
[396518043,1765028283837,-444.75944892,9.257e-05,2]
[396518044,1765028283884,-500.98967068,9.257e-05,2]
[396518045,1765028283929,-500.98967068,9.257e-05,2]
[396518046,1765028283973,-300.0,9.258e-05,2]
[396518047,1765028284018,-281.0,9.258e-05,2]
[396518048,1765028284064,-1200.0,9.258e-05,2]
[396518049,1765028284107,-500.0,9.259e-05,2]
[396518050,1765028284151,-500.0,9.348e-05,2]
[396518051,1765028284194,-569.89298907,9.348e-05,2]
[396518052,1765028284242,-135.9041913,9.348e-05,2]
[396518053,1765028284754,-132.9380587,9.348e-05,2]
[396518054,1765028284800,-2312.83697232,9.348e-05,2]
[396518055,1765028284844,-243.40049597,9.348e-05,2]
[396518056,1765028284893,-500.0,9.348e-05,2]
[396518057,1765028284941,-500.0,9.348e-05,2]
[396518058,1765028284988,-298.46064178,9.348e-05,2]
[396518059,1765028285032,-208.20717943,9.352e-05,2]
[396518060,1765028286598,1608.3233036,9.164e-05,2]
[396518061,1765028286636,9509.80175344,9.164e-05,2]
[396518063,1765028302567,300.0,9.3e-05,2]
[396518064,1765028305722,190.20824656,9.26e-05,2]
[396518065,1765028305761,10000.01,9.26e-05,2]
[396518066,1765028305802,10000.01,9.26e-05,2]
[396518067,1765028305841,10000.01,9.26e-05,2]
[396518068,1765028305893,8355.80779512,9.26e-05,2]
[396518069,1765028312471,500.0,9.353e-05,2]
[396518070,1765028312768,361.6379304,9.353e-05,2]
[396518071,1765028313752,340.55478589,9.353e-05,2]
[396518072,1765028313795,198.96435761,9.353e-05,2]
[396518073,1765028313919,500.0,9.353e-05,2]
[396518074,1765028315593,500.0,9.353e-05,2]
[396518075,1765028317037,500.0,9.353e-05,2]
[396518076,1765028317533,500.0,9.353e-05,2]
[396518077,1765028317990,500.0,9.353e-05,2]
[396518078,1765028318322,500.0,9.353e-05,2]
[396518079,1765028318658,500.0,9.353e-05,2]
[396518080,1765028318976,500.0,9.353e-05,2]
[396518081,1765028319311,334.79274399,9.353e-05,2]
[396518082,1765028331193,-308.52904411,9.354e-05,2]
[396518083,1765028333259,-281.43535408,9.354e-05,2]
[396518084,1765028336474,-151.00865929,9.354e-05,2]
[396518085,1765028338643,-194.99543626,9.354e-05,2]
[396518086,1765028340211,-268.9381939,9.354e-05,2]
[396518087,1765028342878,-238.95557108,9.354e-05,2]
[396518088,1765028342997,300.0,9.353e-05,2]
[396518089,1765028344904,-221.97975173,9.354e-05,2]
[396518090,1765028348160,-259.52644548,9.354e-05,2]
[396518091,1765028350833,-164.75396792,9.354e-05,2]
[396518092,1765028354394,-559.82432427,9.354e-05,2]
[396518093,1765028358436,150.0,7.534e-05,2]
[396518094,1765028358492,150.0,8.218e-05,2]
[396518095,1765028358754,150.0,8.903e-05,2]
[396518096,1765028361169,-278.28527676,9.354e-05,2]
[396518097,1765028362733,-162.62681283,9.354e-05,2]
[396518098,1765028364980,3514.06018211,8.53e-05,2]
[396518099,1765028365016,1689.20279769,8.53e-05,2]
[396518100,1765028376264,-207.63960312,9.354e-05,2]
[396518101,1765028379294,-721.12312739,9.354e-05,2]
[396518103,1765028382391,-218.56464592,9.354e-05,2]
[396518104,1765028384415,-354.55355527,9.354e-05,2]
[396518105,1765028385968,-155.76528857,9.354e-05,2]
[396518106,1765028388433,-545.40940357,9.354e-05,2]
[396518107,1765028392426,-212.74402909,9.354e-05,2]
[396518108,1765028395182,-268.9381939,9.354e-05,2]
[396518109,1765028398047,-161.36012214,9.354e-05,2]
[396518110,1765028400723,-169.70168396,9.354e-05,2]
[396518111,1765028402538,300.0,9.353e-05,2]
[396518112,1765028403007,-248.33166061,9.354e-05,2]
[396518113,1765028404937,227.0,9.353e-05,2]
[396518114,1765028405549,-412.69492243,9.354e-05,2]
[396518116,1765028409421,524.0,9.353e-05,2]
[396518117,1765028419451,2312.83697232,9.354e-05,2]
[396518118,1765028421770,-412.30020494,9.354e-05,2]
[396518119,1765028423924,-181.20625911,9.354e-05,2]
[396518120,1765028426118,-361.01926584,9.354e-05,2]
[396518121,1765028426835,559.69351099,9.353e-05,2]
[396518122,1765028426984,150.0,7.523e-05,2]
[396518123,1765028427903,150.0,8.207e-05,2]
[396518124,1765028428351,150.0,8.891e-05,2]
[396518125,1765028429408,-321.85244931,9.354e-05,2]
[396518126,1765028430822,-317.12828485,9.354e-05,2]
[396518127,1765028432364,-190.99930578,9.354e-05,2]
[396518130,1765028435010,-260.18331902,9.354e-05,2]
[396518131,1765028437595,-370.47752763,9.354e-05,2]
[396518132,1765028439904,-3337.75759312,9.354e-05,2]
[396518133,1765028440035,-10000.01,9.354e-05,2]
[396518134,1765028440148,-10000.01,9.354e-05,2]
[396518135,1765028440311,-10000.01,9.354e-05,2]
[396518136,1765028440465,-10000.01,9.354e-05,2]
[396518137,1765028440722,-10000.01,9.354e-05,2]
[396518138,1765028440908,-10000.01,9.354e-05,2]
[396518139,1765028441060,-10000.01,9.354e-05,2]
[396518140,1765028441220,-10000.01,9.354e-05,2]
[396518141,1765028444286,-10000.01,9.354e-05,2]
[396518142,1765028444527,-10000.01,9.354e-05,2]
[396518143,1765028444889,-10000.01,9.354e-05,2]
[396518144,1765028445038,-10000.01,9.354e-05,2]
[396518145,1765028445375,-10000.01,9.354e-05,2]
[396518146,1765028445580,-10000.01,9.354e-05,2]
[396518147,1765028445716,-10000.01,9.354e-05,2]
[396518148,1765028445906,-10000.01,9.354e-05,2]
[396518149,1765028446041,-10000.01,9.354e-05,2]
[396518150,1765028446192,-10000.01,9.354e-05,2]
[396518151,1765028446421,-10000.01,9.354e-05,2]
[396518152,1765028446589,-10000.01,9.354e-05,2]
[396518153,1765028446879,-10000.01,9.354e-05,2]
[396518154,1765028447140,-10000.01,9.354e-05,2]
[396518155,1765028447308,-10000.01,9.354e-05,2]
[396518159,1765028463778,300.0,9.353e-05,2]
[396518166,1765028491811,380.64794645,9.078e-05,2]
[396518167,1765028494216,435.02622451,9.078e-05,2]
[396518168,1765028496166,-180.83073419,9.354e-05,2]
[396518169,1765028496315,150.0,7.534e-05,2]
[396518170,1765028496825,150.0,8.219e-05,2]
[396518171,1765028497058,679.04874732,9.078e-05,2]
[396518172,1765028497150,150.0,8.904e-05,2]
[396518176,1765028522342,179.19,8.3e-05,2]
[396518177,1765028522494,300.0,9.353e-05,2]
[396518178,1765028523233,537.19919378,9.353e-05,2]
[396518182,1765028565230,150.0,7.625e-05,2]
[396518183,1765028565638,150.0,8.318e-05,2]
[396518184,1765028566050,150.0,9.011e-05,2]
[396518185,1765028582571,300.0,9.353e-05,2]
[396518186,1765028631929,150.0,7.613e-05,2]
[396518187,1765028632866,150.0,8.305e-05,2]
[396518188,1765028642542,300.0,9.353e-05,2]
[396518189,1765028663074,5388.89788794,9.254e-05,2]
[396518190,1765028663115,10000.01,9.254e-05,2]
[396518191,1765028663157,10000.01,9.254e-05,2]
[396518192,1765028663198,10000.01,9.254e-05,2]
[396518193,1765028663238,10000.01,9.254e-05,2]
[396518194,1765028663279,10000.01,9.254e-05,2]
[396518195,1765028663317,10000.01,9.254e-05,2]
[396518196,1765028663355,10000.01,9.254e-05,2]
[396518197,1765028663394,10000.01,9.254e-05,2]
[396518198,1765028663435,10000.01,9.254e-05,2]
[396518199,1765028663470,45000.0,9.254e-05,2]
[396518200,1765028681976,-10000.01,9.161e-05,2]
[396518201,1765028682253,-10000.01,9.161e-05,2]
[396518202,1765028682433,-10000.01,9.069e-05,2]
[396518203,1765028682586,-2421.36014139,9.069e-05,2]
[396518204,1765028682632,-1601.54305961,9.161e-05,2]
[396518205,1765028682680,-500.0,9.253e-05,2]
[396518206,1765028682727,-454.203598,9.253e-05,2]
[396518207,1765028682900,-45.796402,9.253e-05,2]
[396518208,1765028682946,-500.0,9.253e-05,2]
[396518209,1765028682988,-390.52403616,9.253e-05,2]
[396518210,1765028683030,-500.0,9.253e-05,2]
[396518211,1765028683071,-500.0,9.253e-05,2]
[396518212,1765028683113,-500.0,9.253e-05,2]
[396518213,1765028683159,-285.97112539,9.253e-05,2]
[396518214,1765028683204,-500.0,9.253e-05,2]
[396518215,1765028683246,-500.0,9.253e-05,2]
[396518216,1765028683292,-500.0,9.253e-05,2]
[396518217,1765028683337,-500.0,9.253e-05,2]
[396518218,1765028683381,-55.4268729,9.253e-05,2]
[396518219,1765028683485,-444.5731271,9.253e-05,2]
[396518220,1765028683531,-500.0,9.253e-05,2]
[396518221,1765028683578,-500.0,9.253e-05,2]
[396518222,1765028683623,-500.0,9.253e-05,2]
[396518223,1765028683666,-500.0,9.253e-05,2]
[396518224,1765028683711,-473.15429397,9.253e-05,2]
[396518225,1765028683755,-500.0,9.253e-05,2]
[396518226,1765028683795,-500.0,9.253e-05,2]
[396518227,1765028690177,2164.55515786,9.161e-05,2]
[396518228,1765028690222,5549.24769437,9.161e-05,2]
[396518229,1765028692465,-165.33896803,9.254e-05,2]
[396518230,1765028694536,-493.49161529,9.254e-05,2]
[396518234,1765028696782,-162.20338691,9.254e-05,2]
[396518235,1765028697102,258.62,7.613e-05,2]
[396518236,1765028697309,517.24,8.305e-05,2]
[396518237,1765028697719,775.85,8.997e-05,2]
[396518238,1765028698428,2899.05230563,9.161e-05,2]
[396518239,1765028698467,7465.23357227,9.161e-05,2]
[396518240,1765028699961,-230.89,9.254e-05,2]
[396518241,1765028702408,2473.18,8.3e-05,2]
[396518242,1765028702725,61.59642773,8.4e-05,2]
[396518243,1765028702767,2411.58357227,8.4e-05,2]
[396518244,1765028704159,2473.18,8.5e-05,2]
[396518245,1765028704541,300.0,9.253e-05,2]
[396518246,1765028704622,2473.18,8.6e-05,2]
[396518247,1765028704912,2342.06642773,8.7e-05,2]
[396518248,1765028704955,131.11357227,8.7e-05,2]
[396518249,1765028705233,2473.18,8.8e-05,2]
[396518250,1765028705547,2473.18,9e-05,2]
[396518251,1765028706052,2473.18,9.1e-05,2]
[396518252,1765028706180,2449.35642773,9.2e-05,2]
[396518253,1765028706222,23.82357227,9.2e-05,2]
[396518255,1765028709861,1200.0,9.253e-05,2]
[396518256,1765028717880,500.0,9.253e-05,2]
[396518257,1765028717937,412.69492242,9.253e-05,2]
[396518258,1765028720945,6507.20897299,9.161e-05,2]
[396518259,1765028721329,220.4902624,9.253e-05,2]
[396518260,1765028724349,500.0,9.253e-05,2]
[396518261,1765028724406,500.0,9.253e-05,2]
[396518262,1765028724664,135.79226992,9.253e-05,2]
[396518263,1765028726459,-364.20773008,9.253e-05,2]
[396518264,1765028726502,-500.0,9.253e-05,2]
[396518265,1765028726542,-500.0,9.253e-05,2]
[396518266,1765028726580,-500.0,9.253e-05,2]
[396518267,1765028726624,-500.0,9.253e-05,2]
[396518268,1765028726663,-500.0,9.253e-05,2]
[396518269,1765028726703,-500.0,9.253e-05,2]
[396518270,1765028726742,-500.0,9.253e-05,2]
[396518271,1765028726780,-500.0,9.253e-05,2]
[396518272,1765028726818,-500.0,9.253e-05,2]
[396518273,1765028726856,-500.0,9.253e-05,2]
[396518274,1765028726894,-500.0,9.253e-05,2]
[396518275,1765028726932,-500.0,9.253e-05,2]
[396518276,1765028726970,-500.0,9.253e-05,2]
[396518277,1765028727009,-500.0,9.253e-05,2]
[396518278,1765028727046,-500.0,9.253e-05,2]
[396518279,1765028727084,-500.0,9.253e-05,2]
[396518280,1765028727121,-500.0,9.253e-05,2]
[396518281,1765028727159,-504.83323593,9.253e-05,2]
[396518282,1765028727197,-500.0,9.253e-05,2]
[396518283,1765028727240,-500.0,9.253e-05,2]
[396518284,1765028727279,-500.0,9.253e-05,2]
[396518285,1765028727316,-500.0,9.253e-05,2]
[396518286,1765028727355,-500.0,9.253e-05,2]
[396518287,1765028727396,-500.0,9.253e-05,2]
[396518288,1765028727604,-500.0,9.253e-05,2]
[396518289,1765028727641,-500.0,9.253e-05,2]
[396518290,1765028727693,-500.0,9.253e-05,2]
[396518291,1765028727737,-500.0,9.253e-05,2]
[396518292,1765028727777,-500.0,9.253e-05,2]
[396518293,1765028727819,-500.0,9.253e-05,2]
[396518294,1765028727858,-500.0,9.253e-05,2]
[396518295,1765028727898,-500.0,9.253e-05,2]
[396518296,1765028727938,-500.0,9.253e-05,2]
[396518297,1765028727977,-500.0,9.253e-05,2]
[396518298,1765028728014,-500.0,9.253e-05,2]
[396518299,1765028728051,-500.0,9.253e-05,2]
[396518300,1765028728089,-500.0,9.253e-05,2]
[396518301,1765028728127,-500.0,9.253e-05,2]
[396518302,1765028728163,-500.0,9.253e-05,2]
[396518303,1765028728200,-500.0,9.253e-05,2]
[396518304,1765028728247,-500.0,9.253e-05,2]
[396518316,1765028731280,1173.2786275,8.479e-05,2]
[396518317,1765028731740,2088.63944048,9.16e-05,2]
[396518318,1765028731971,-3501.33954433,9.16e-05,2]
[396518320,1765028733711,500.0,9.253e-05,2]
[396518321,1765028733776,500.0,9.253e-05,2]
[396518323,1765028733830,500.0,9.253e-05,2]
[396518324,1765028733890,329.87943688,9.253e-05,2]
[396518326,1765028737310,329.87943688,9.16e-05,2]
[396518336,1765028745131,837.57203758,9.161e-05,2]
[396518338,1765028745179,10000.01,9.161e-05,2]
[396518339,1765028745220,2739.84793602,9.161e-05,2]
[396518342,1765028753286,7009.38350434,9.161e-05,2]
[396518343,1765028761500,250.77855964,9.161e-05,2]
[396518344,1765028761537,2100.91191651,9.161e-05,2]
[396518345,1765028762887,300.0,9.253e-05,2]
[396518349,1765028769215,8534.68185599,9.161e-05,2]
[396518350,1765028777272,1465.32814401,9.161e-05,2]
[396518351,1765028777313,5313.98126175,9.161e-05,2]
[396518352,1765028777689,2462.95,8.3e-05,2]
[396518353,1765028778059,2223.07873825,8.4e-05,2]
[396518354,1765028780531,-239.87126175,8.4e-05,2]
[396518355,1765028781037,-363.38578412,8.5e-05,2]
[396518356,1765028783238,280.44,8.097e-05,2]
[396518357,1765028783487,-174.9151614,8.5e-05,2]
[396518358,1765028785037,-454.2047157,8.5e-05,2]
[396518359,1765028790352,-161.57926918,8.415e-05,2]
[396518360,1765028793319,-214.98371329,8.415e-05,2]
[396518361,1765028793555,1937.9849467,8.331e-05,2]
[396518362,1765028798324,-300.0,8.415e-05,2]
[396518363,1765028801490,-1423.00123341,8.415e-05,2]
[396518364,1765028801673,1423.00123341,8.331e-05,2]
[396518366,1765028804171,-160.24,8.5e-05,2]
[396518367,1765028806386,-193.67545728,8.5e-05,2]
[396518368,1765028809922,1116.5288815,8.415e-05,2]
[396518370,1765028814460,-176.45544528,8.5e-05,2]
[396518371,1765028816633,-940.07343622,8.5e-05,2]
[396518372,1765028817100,-189.28072249,8.6e-05,2]
[396518373,1765028817889,940.07343622,8.415e-05,2]
[396518374,1765028820175,-184.44347119,8.6e-05,2]
[396518375,1765028835347,-560.88,8.658e-05,2]
[396518376,1765028835393,-560.88,8.745e-05,2]
[396518377,1765028840225,2594.91,8.3e-05,2]
[396518378,1765028840522,2594.91,8.4e-05,2]
[396518379,1765028840866,2566.67,8.5e-05,2]
[396518380,1765028840910,28.24,8.5e-05,2]
[396518381,1765028841341,-151.36159493,8.833e-05,2]
[396518382,1765028841394,2594.91,8.6e-05,2]
[396518383,1765028841571,2594.91,8.7e-05,2]
[396518384,1765028842659,409.51840507,8.745e-05,2]
[396518385,1765028844726,-173.86943059,8.8e-05,2]
[396518387,1765028846795,-305.77711622,8.8e-05,2]
[396518388,1765028847410,-2115.26345319,8.8e-05,2]
[396518389,1765028851513,409.51840507,8.745e-05,2]
[396518390,1765028852820,-219.56314794,8.833e-05,2]
[396518392,1765028863132,-300.0,8.909e-05,2]
[396518393,1765028863787,282.28,7.894e-05,2]
[396518394,1765028864216,564.56,8.612e-05,2]
[396518395,1765028868877,300.0,8.909e-05,2]
[396518397,1765028876711,300.0,8.909e-05,2]
[396518398,1765028879083,-300.0,8.999e-05,2]
[396518399,1765028892627,9400.01,8.918e-05,2]
[396518400,1765028892666,4912.03136661,8.918e-05,2]
[396518401,1765028898681,2317.27,8.3e-05,2]
[396518402,1765028899163,2317.27,8.4e-05,2]
[396518403,1765028899304,2317.27,8.5e-05,2]
[396518404,1765028899604,2317.27,8.6e-05,2]
[396518405,1765028899893,730.93,8.7e-05,2]
[396518406,1765028899935,1586.34,8.7e-05,2]
[396518407,1765028900347,2317.27,8.8e-05,2]
[396518408,1765028901214,6096.4,8.918e-05,2]
[396518409,1765028901253,1753.30394685,8.918e-05,2]
[396518410,1765028905155,162.0,5.8e-07,2]
[396518411,1765028931271,-168.80446391,8.821e-05,2]
[396518412,1765028935831,-551.54969915,8.821e-05,2]
[396518413,1765028942321,-211.72877927,8.821e-05,2]
[396518414,1765028943808,282.29,7.903e-05,2]
[396518415,1765028943879,250.0,0.00013102,3]
[396518416,1765028944250,564.57,8.622e-05,2]
[396518417,1765028945001,-244.38669127,8.821e-05,2]
[396518418,1765028958986,2071.92,8.3e-05,2]
[396518419,1765028959443,2071.92,8.4e-05,2]
[396518420,1765028959803,2071.92,8.5e-05,2]
[396518421,1765028960123,2071.92,8.6e-05,2]
[396518422,1765028960435,865.47,8.7e-05,2]
[396518423,1765028960477,1206.45,8.7e-05,2]
[396518424,1765028976204,-257.0,8.8e-05,2]
[396518425,1765028981477,-423.71393062,8.8e-05,2]
[396518426,1765028983031,-336.25087425,8.8e-05,2]
[396518427,1765028988314,-377.48557727,8.8e-05,2]
[396518428,1765028990027,-225.77268511,8.8e-05,2]
[396518430,1765029024230,295.39,8.051e-05,2]
[396518431,1765029024644,590.77,8.783e-05,2]
[396518432,1765029025339,1850.72,8.3e-05,2]
[396518433,1765029025708,1850.72,8.4e-05,2]
[396518434,1765029026056,1850.72,8.5e-05,2]
[396518435,1765029026592,1850.72,8.6e-05,2]
[396518436,1765029027077,504.52,8.7e-05,2]
[396518437,1765029027119,1346.2,8.7e-05,2]
[396518488,1765029032192,-1850.72,8.8e-05,2]
[396518491,1765029032202,-1140.8003664,8.821e-05,2]
[396518492,1765029032212,-223.0,8.821e-05,2]
[396518495,1765029032222,-2317.27,8.91e-05,2]
[396518496,1765029032232,-1850.72,9e-05,2]
[396518498,1765029032241,-300.0,9.006e-05,2]
[396518500,1765029032251,-300.0,9.006e-05,2]
[396518502,1765029032261,-1200.0,9.006e-05,2]
[396518504,1765029032269,-500.0,9.007e-05,2]
[396518506,1765029032279,-1141.26733642,9.008e-05,2]
[396518508,1765029032291,-13170.77403019,9.008e-05,2]
[396518510,1765029032301,-203.34196796,9.053e-05,2]
[396518512,1765029032310,-153.0,9.06e-05,2]
[396518514,1765029032319,-397.3130253,9.06e-05,2]
[396518516,1765029032328,-153.602728,9.1e-05,2]
[396518518,1765029032337,-397.3130253,9.1e-05,2]
[396518520,1765029032346,-1850.72,9.1e-05,2]
[396518522,1765029032355,-458.21094303,9.154e-05,2]
[396518524,1765029032366,-1850.72,9.2e-05,2]
[396518526,1765029032375,-166.68776487,9.253e-05,2]
[396518528,1765029032386,-2312.83697232,9.254e-05,2]
[396518530,1765029032396,-138470.51736593,9.254e-05,2]
[396518566,1765029038094,-8242.55770859,8.916e-05,2]
[396518569,1765029038104,-500.0,9.006e-05,2]
[396518570,1765029038113,-416.21693576,9.006e-05,2]
[396518572,1765029038122,-500.0,9.006e-05,2]
[396518574,1765029038131,-500.0,9.006e-05,2]
[396518576,1765029038140,-500.0,9.006e-05,2]
[396518578,1765029038149,-500.0,9.006e-05,2]
[396518580,1765029038158,-500.0,9.006e-05,2]
[396518582,1765029038167,-500.0,9.006e-05,2]
[396518584,1765029038176,-257.46375605,9.006e-05,2]
[396518586,1765029038186,-500.0,9.006e-05,2]
[396518588,1765029038195,-500.0,9.006e-05,2]
[396518590,1765029038204,-500.0,9.006e-05,2]
[396518593,1765029038213,-500.0,9.006e-05,2]
[396518595,1765029038222,-500.0,9.006e-05,2]
[396518597,1765029038232,-500.0,9.006e-05,2]
[396518599,1765029038242,-500.0,9.006e-05,2]
[396518601,1765029038251,-368.01887769,9.006e-05,2]
[396518603,1765029038260,-500.0,9.006e-05,2]
[396518605,1765029038269,-34452.1135685,9.254e-05,2]
[396518608,1765029038287,-3375.35056344,9.254e-05,2]
[396518610,1765029038298,-911.94749805,9.254e-05,2]
[396518711,1765029041068,-3e-08,9.254e-05,2]
[396518735,1765029043524,-66306.17486567,9.254e-05,2]
[396518736,1765029043538,-11632.21708476,9.254e-05,2]
[396518737,1765029043555,-5117.60371053,9.254e-05,2]
[396518738,1765029044254,-2913.47731066,9.254e-05,2]
[396518739,1765029044266,-7883.45929748,9.254e-05,2]
[396518740,1765029044277,-8126.41739416,9.254e-05,2]
[396518741,1765029044288,-414.45031978,9.254e-05,2]
[396518742,1765029044312,-3406.06493121,9.254e-05,2]
[396518743,1765029044329,-404.63637287,9.254e-05,2]
[396518751,1765029047304,-3476.468,9.161e-05,2]
[396518757,1765029103764,293.9,7.545e-05,2]
[396518758,1765029104176,587.81,8.231e-05,2]
[396518760,1765029126373,1550.51,8.3e-05,2]
[396518761,1765029126766,1550.51,8.4e-05,2]
[396518762,1765029127147,1550.51,8.5e-05,2]
[396518763,1765029127485,1550.51,8.6e-05,2]
[396518764,1765029127856,1550.51,8.7e-05,2]
[396518776,1765029183387,291.6,7.524e-05,2]
[396518777,1765029183524,583.21,8.208e-05,2]
[396518779,1765029202818,1372.65,8.3e-05,2]
[396518780,1765029202865,35.07,8.3e-05,2]
[396518781,1765029203128,1407.72,8.4e-05,2]
[396518782,1765029203577,1407.72,8.5e-05,2]
[396518784,1765029204222,1407.72,8.6e-05,2]
[396518785,1765029204318,1407.72,8.7e-05,2]
[396518786,1765029233390,1407.72,8.712e-05,2]
[396518789,1765029241909,1407.72,8.712e-05,2]
[396518791,1765029250115,205.8151286,8.758e-05,2]
[396518792,1765029258408,1266.95,8.3e-05,2]
[396518793,1765029258628,45.8548714,8.758e-05,2]
[396518794,1765029258685,159.9602572,8.758e-05,2]
[396518795,1765029258856,1266.95,8.4e-05,2]
[396518796,1765029259058,1266.95,8.5e-05,2]
[396518797,1765029259327,1266.95,8.6e-05,2]
[396518798,1765029259741,1266.95,8.7e-05,2]
[396518799,1765029262935,280.47,7.528e-05,2]
[396518800,1765029263336,560.94,8.213e-05,2]
[396518801,1765029266490,1266.95,8.712e-05,2]
[396518802,1765029274508,1181.05452755,8.712e-05,2]
[396518803,1765029276935,-449.87947132,8.8e-05,2]
[396518804,1765029278573,-272.35276729,8.8e-05,2]
[396518805,1765029280104,-302.58576107,8.8e-05,2]
[396518806,1765029280822,-242.13200032,8.8e-05,2]
[396518807,1765029281693,-205.8151286,8.846e-05,2]